[Event "Titled Tuesday Blitz March 08 Early 2022"]
[White "Van den Dikkenberg, Erik"]
[Black "Golizadeh, Asghar"]
[WhiteFideId "1005880"]
[BlackFideId "12505269"]
[WhiteElo "2118"]
[BlackElo "2403"]
[Result "1-0"]
[Round "03"]
[TimeControl "180+1"]
[Date "2022.03.09"]
[WhiteClock "0:00:35"]
[BlackClock "0:00:59"]

1. e4 {[%clk 0:02:48]}  c5 {[%clk 0:02:59]} 2. Nc3 {[%clk 0:02:46]}  d6 {[%clk 0:02:58]} 3. f4 {[%clk 0:02:45]}  g6 {[%clk 0:02:55]} 4. Nf3 {[%clk 0:02:46]}  Bg7 {[%clk 0:02:56]} 5. Bc4 {[%clk 0:02:43]}  e6 {[%clk 0:02:56]} 6. O-O {[%clk 0:02:44]}  Ne7 {[%clk 0:02:56]} 7. d3 {[%clk 0:02:44]}  Nbc6 {[%clk 0:02:57]} 8. Qe1 {[%clk 0:02:45]}  O-O {[%clk 0:02:57]} 9. Kh1 {[%clk 0:02:45]}  d5 {[%clk 0:02:57]} 10. Bb5 {[%clk 0:02:42]}  Nd4 {[%clk 0:02:57]} 11. Nxd4 {[%clk 0:02:42]}  cxd4 {[%clk 0:02:58]} 12. Ne2 {[%clk 0:02:42]}  dxe4 {[%clk 0:02:52]} 13. dxe4 {[%clk 0:02:41]}  Bd7 {[%clk 0:02:40]} 14. Bd3 {[%clk 0:02:41]}  Rc8 {[%clk 0:02:40]} 15. b3 {[%clk 0:02:31]}  Nc6 {[%clk 0:02:36]} 16. Bb2 {[%clk 0:02:19]}  Qb6 {[%clk 0:02:29]} 17. Qf2 {[%clk 0:02:18]}  Rfd8 {[%clk 0:02:00]} 18. f5 {[%clk 0:01:56]}  exf5 {[%clk 0:01:08]} 19. exf5 {[%clk 0:01:56]}  Bxf5 {[%clk 0:01:08]} 20. Bxf5 {[%clk 0:01:48]}  gxf5 {[%clk 0:01:09]} 21. Qxf5 {[%clk 0:01:43]}  Ne7 {[%clk 0:01:09]} 22. Qxf7+ {[%clk 0:01:39]}  Kh8 {[%clk 0:01:10]} 23. Qxe7 {[%clk 0:01:31]}  Rxc2 {[%clk 0:01:10]} 24. Bxd4 {[%clk 0:00:40]}  Rxe2 {[%clk 0:00:59]} 25. Qxg7# {[%clk 0:00:35]} 1-0


[Site "https://www.chess.com"]

[Event "Titled Tuesday Blitz March 08 Early 2022"]
[White "Vifleemskaia, Svetlana"]
[Black "De Souza, Cristiano Gomes"]
[WhiteFideId "4129490"]
[BlackFideId "2151758"]
[WhiteElo "1901"]
[BlackElo "2068"]
[Result "1/2-1/2"]
[Round "03"]
[TimeControl "180+1"]
[Date "2022.03.09"]
[WhiteClock "0:00:50"]
[BlackClock "0:00:09"]

1. d4 {[%clk 0:03:00]}  Nf6 {[%clk 0:00:57]} 2. c4 {[%clk 0:02:59]}  g6 {[%clk 0:00:50]} 3. Nc3 {[%clk 0:02:59]}  Bg7 {[%clk 0:00:50]} 4. e4 {[%clk 0:02:59]}  d6 {[%clk 0:00:51]} 5. Nge2 {[%clk 0:02:59]}  O-O {[%clk 0:00:51]} 6. Ng3 {[%clk 0:03:00]}  Nbd7 {[%clk 0:00:52]} 7. Be2 {[%clk 0:03:00]}  e5 {[%clk 0:00:53]} 8. d5 {[%clk 0:03:01]}  a5 {[%clk 0:00:52]} 9. O-O {[%clk 0:03:02]}  Nc5 {[%clk 0:00:52]} 10. Be3 {[%clk 0:03:01]}  h5 {[%clk 0:00:53]} 11. f3 {[%clk 0:02:55]}  h4 {[%clk 0:00:52]} 12. Nh1 {[%clk 0:02:55]}  Nh5 {[%clk 0:00:52]} 13. Qe1 {[%clk 0:02:46]}  Nf4 {[%clk 0:00:49]} 14. Qd2 {[%clk 0:02:38]}  Qg5 {[%clk 0:00:40]} 15. Bxf4 {[%clk 0:02:32]}  exf4 {[%clk 0:00:39]} 16. Nf2 {[%clk 0:02:28]}  h3 {[%clk 0:00:38]} 17. g4 {[%clk 0:02:20]}  Be5 {[%clk 0:00:35]} 18. Nxh3 {[%clk 0:01:55]}  Qh4 {[%clk 0:00:34]} 19. Kg2 {[%clk 0:01:53]}  Kg7 {[%clk 0:00:33]} 20. Qe1 {[%clk 0:01:53]}  Qh7 {[%clk 0:00:31]} 21. Ng5 {[%clk 0:01:37]}  Qh6 {[%clk 0:00:30]} 22. h4 {[%clk 0:01:36]}  Rh8 {[%clk 0:00:23]} 23. Rh1 {[%clk 0:01:35]}  f6 {[%clk 0:00:23]} 24. Ne6+ {[%clk 0:01:27]}  Nxe6 {[%clk 0:00:21]} 25. dxe6 {[%clk 0:01:28]}  Bxe6 {[%clk 0:00:21]} 26. Nd5 {[%clk 0:01:28]}  Bxd5 {[%clk 0:00:20]} 27. exd5 {[%clk 0:01:18]}  Rae8 {[%clk 0:00:18]} 28. Qd2 {[%clk 0:01:16]}  b6 {[%clk 0:00:18]} 29. Bd3 {[%clk 0:01:16]}  g5 {[%clk 0:00:18]} 30. hxg5 {[%clk 0:01:08]}  Qxg5 {[%clk 0:00:18]} 31. Bf5 {[%clk 0:01:07]}  Rxh1 {[%clk 0:00:16]} 32. Rxh1 {[%clk 0:01:06]}  Rh8 {[%clk 0:00:15]} 33. Rxh8 {[%clk 0:00:58]}  Kxh8 {[%clk 0:00:10]} 34. Qe1 {[%clk 0:00:58]}  Qh6 {[%clk 0:00:09]} 35. b3 {[%clk 0:00:53]}  Kg7 {[%clk 0:00:09]} 36. Qh1 {[%clk 0:00:51]}  Qxh1+ {[%clk 0:00:07]} 37. Kxh1 {[%clk 0:00:52]}  Kh6 {[%clk 0:00:08]} 38. Kg2 {[%clk 0:00:52]}  Kg5 {[%clk 0:00:08]} 39. a4 {[%clk 0:00:52]}  Bd4 {[%clk 0:00:09]} 40. Kh3 {[%clk 0:00:50]}  Bc5 {[%clk 0:00:09]} 41. Be6 {[%clk 0:00:50]}  Bb4 {[%clk 0:00:09]} 42. Bf5 {[%clk 0:00:50]}  Bc5 {[%clk 0:00:09]} 43. Be6 {[%clk 0:00:50]}  Bb4 {[%clk 0:00:09]} 44. Bf5 {[%clk 0:00:50]}  Bc5 {[%clk 0:00:09]} 1/2-1/2


[Site "https://www.chess.com"]

[Event "Titled Tuesday Blitz March 08 Early 2022"]
[White "Vlassov, Nikolai"]
[Black "Miszler, Levente"]
[WhiteFideId "4103360"]
[BlackFideId "763276"]
[WhiteElo "2407"]
[BlackElo "1966"]
[Result "1-0"]
[Round "03"]
[TimeControl "180+1"]
[Date "2022.03.09"]
[WhiteClock "0:01:26"]
[BlackClock "0:00:02"]

1. e4 {[%clk 0:03:00]}  e6 {[%clk 0:02:59]} 2. d4 {[%clk 0:03:00]}  d5 {[%clk 0:03:00]} 3. exd5 {[%clk 0:03:01]}  exd5 {[%clk 0:03:00]} 4. Nf3 {[%clk 0:03:00]}  Nf6 {[%clk 0:03:00]} 5. c4 {[%clk 0:03:00]}  Bb4+ {[%clk 0:02:55]} 6. Nc3 {[%clk 0:03:00]}  O-O {[%clk 0:02:54]} 7. Bd3 {[%clk 0:03:00]}  Re8+ {[%clk 0:02:53]} 8. Be3 {[%clk 0:02:59]}  Ng4 {[%clk 0:02:38]} 9. O-O {[%clk 0:02:59]}  Nxe3 {[%clk 0:02:39]} 10. fxe3 {[%clk 0:02:59]}  Rxe3 {[%clk 0:02:29]} 11. Nxd5 {[%clk 0:02:58]}  Rxd3 {[%clk 0:02:11]} 12. Qxd3 {[%clk 0:02:57]}  Bd6 {[%clk 0:02:11]} 13. Rae1 {[%clk 0:02:52]}  c6 {[%clk 0:02:09]} 14. Ng5 {[%clk 0:02:48]}  Qxg5 {[%clk 0:01:51]} 15. Re8+ {[%clk 0:02:47]}  Bf8 {[%clk 0:01:51]} 16. Ne7+ {[%clk 0:02:43]}  Qxe7 {[%clk 0:01:51]} 17. Rxe7 {[%clk 0:02:44]}  Bxe7 {[%clk 0:01:51]} 18. Re1 {[%clk 0:02:42]}  Be6 {[%clk 0:01:43]} 19. d5 {[%clk 0:02:42]}  cxd5 {[%clk 0:01:44]} 20. cxd5 {[%clk 0:02:43]}  Bc5+ {[%clk 0:01:44]} 21. Kh1 {[%clk 0:02:40]}  Bd7 {[%clk 0:01:42]} 22. b4 {[%clk 0:02:37]}  Bxb4 {[%clk 0:01:29]} 23. Rb1 {[%clk 0:02:35]}  Na6 {[%clk 0:01:12]} 24. a3 {[%clk 0:02:33]}  Rc8 {[%clk 0:01:12]} 25. axb4 {[%clk 0:02:31]}  Nxb4 {[%clk 0:01:13]} 26. Qd4 {[%clk 0:02:24]}  a5 {[%clk 0:01:11]} 27. h3 {[%clk 0:02:23]}  h6 {[%clk 0:01:02]} 28. Qb6 {[%clk 0:02:15]}  Nxd5 {[%clk 0:00:56]} 29. Qxb7 {[%clk 0:02:14]}  Be6 {[%clk 0:00:56]} 30. Qa6 {[%clk 0:02:08]}  g6 {[%clk 0:00:50]} 31. Qxa5 {[%clk 0:02:07]}  h5 {[%clk 0:00:49]} 32. Rd1 {[%clk 0:02:05]}  Kg7 {[%clk 0:00:37]} 33. Rxd5 {[%clk 0:01:57]}  Bxd5 {[%clk 0:00:38]} 34. Qxd5 {[%clk 0:01:57]}  Re8 {[%clk 0:00:37]} 35. Qd4+ {[%clk 0:01:57]}  Kg8 {[%clk 0:00:34]} 36. Kh2 {[%clk 0:01:54]}  Re6 {[%clk 0:00:33]} 37. Kg3 {[%clk 0:01:54]}  Kh7 {[%clk 0:00:28]} 38. Qd8 {[%clk 0:01:51]}  Re5 {[%clk 0:00:21]} 39. Qf8 {[%clk 0:01:48]}  Rf5 {[%clk 0:00:21]} 40. Kh4 {[%clk 0:01:47]}  Rf1 {[%clk 0:00:15]} 41. g4 {[%clk 0:01:43]}  hxg4 {[%clk 0:00:12]} 42. hxg4 {[%clk 0:01:41]}  Rf2 {[%clk 0:00:08]} 43. Kg5 {[%clk 0:01:39]}  Rf1 {[%clk 0:00:07]} 44. Qh6+ {[%clk 0:01:38]}  Kg8 {[%clk 0:00:08]} 45. Qh3 {[%clk 0:01:37]}  Rf2 {[%clk 0:00:07]} 46. Kh6 {[%clk 0:01:35]}  Re2 {[%clk 0:00:04]} 47. Qg3 {[%clk 0:01:27]}  Re6 {[%clk 0:00:02]} 48. Qb8+ {[%clk 0:01:26]} 1-0


[Site "https://www.chess.com"]

[Event "Titled Tuesday Blitz March 08 Early 2022"]
[White "Wagner, Dennis"]
[Black "Nakamura, Hikaru"]
[WhiteFideId "24650684"]
[BlackFideId "2016192"]
[WhiteElo "2355"]
[BlackElo "2850"]
[Result "0-1"]
[Round "03"]
[TimeControl "180+1"]
[Date "2022.03.08"]
[WhiteClock "0:00:06"]
[BlackClock "0:01:25"]

1. d4 {[%clk 0:02:55]}  g6 {[%clk 0:02:59]} 2. e4 {[%clk 0:02:53]}  Bg7 {[%clk 0:02:59]} 3. Nc3 {[%clk 0:02:53]}  a6 {[%clk 0:02:59]} 4. Be3 {[%clk 0:02:50]}  b5 {[%clk 0:02:59]} 5. Nf3 {[%clk 0:02:46]}  Bb7 {[%clk 0:02:59]} 6. Bd3 {[%clk 0:02:47]}  d6 {[%clk 0:02:59]} 7. a4 {[%clk 0:02:46]}  c6 {[%clk 0:02:52]} 8. O-O {[%clk 0:02:43]}  Nd7 {[%clk 0:02:50]} 9. Qd2 {[%clk 0:02:41]}  Ngf6 {[%clk 0:02:50]} 10. h3 {[%clk 0:02:39]}  O-O {[%clk 0:02:49]} 11. Rfd1 {[%clk 0:02:30]}  e5 {[%clk 0:02:49]} 12. dxe5 {[%clk 0:02:23]}  dxe5 {[%clk 0:02:50]} 13. Ne2 {[%clk 0:02:16]}  Qe7 {[%clk 0:02:46]} 14. Ng3 {[%clk 0:02:13]}  Rfe8 {[%clk 0:02:45]} 15. b4 {[%clk 0:02:00]}  Bf8 {[%clk 0:02:23]} 16. Rdb1 {[%clk 0:01:55]}  Rad8 {[%clk 0:02:21]} 17. Qe2 {[%clk 0:01:44]}  Qd6 {[%clk 0:02:17]} 18. c4 {[%clk 0:01:35]}  bxa4 {[%clk 0:02:13]} 19. c5 {[%clk 0:01:25]}  Qc7 {[%clk 0:02:12]} 20. Rxa4 {[%clk 0:01:22]}  Nb8 {[%clk 0:02:12]} 21. Bc4 {[%clk 0:01:20]}  h6 {[%clk 0:02:13]} 22. Nh2 {[%clk 0:01:13]}  Bc8 {[%clk 0:02:12]} 23. Qf3 {[%clk 0:01:10]}  Qe7 {[%clk 0:02:11]} 24. Nhf1 {[%clk 0:00:58]}  Be6 {[%clk 0:01:55]} 25. Nd2 {[%clk 0:00:51]}  Kg7 {[%clk 0:01:49]} 26. Rc1 {[%clk 0:00:39]}  Rd7 {[%clk 0:01:48]} 27. Bxe6 {[%clk 0:00:40]}  Qxe6 {[%clk 0:01:49]} 28. Nc4 {[%clk 0:00:40]}  Red8 {[%clk 0:01:50]} 29. Qe2 {[%clk 0:00:35]}  Rd3 {[%clk 0:01:44]} 30. Raa1 {[%clk 0:00:32]}  h5 {[%clk 0:01:34]} 31. Nd6 {[%clk 0:00:30]}  Rb3 {[%clk 0:01:32]} 32. Nb7 {[%clk 0:00:10]}  Rd7 {[%clk 0:01:29]} 33. Na5 {[%clk 0:00:09]}  Rxb4 {[%clk 0:01:29]} 34. Nc4 {[%clk 0:00:08]}  Rb5 {[%clk 0:01:28]} 35. Nb6 {[%clk 0:00:08]}  Rd8 {[%clk 0:01:28]} 36. Kh2 {[%clk 0:00:07]}  h4 {[%clk 0:01:28]} 37. Nf1 {[%clk 0:00:07]}  Nxe4 {[%clk 0:01:29]} 38. Bh6+ {[%clk 0:00:07]}  Kxh6 {[%clk 0:01:29]} 39. Qxe4 {[%clk 0:00:07]}  Rd4 {[%clk 0:01:24]} 40. Qe3+ {[%clk 0:00:07]}  Kh7 {[%clk 0:01:25]} 41. Nd2 {[%clk 0:00:06]}  Bh6 {[%clk 0:01:25]} 0-1


[Site "https://www.chess.com"]

[Event "Titled Tuesday Blitz March 08 Early 2022"]
[White "Zanette, Edgard Vinicius"]
[Black "Winkels, Marcel"]
[WhiteFideId "2109263"]
[BlackFideId "1003887"]
[WhiteElo "2182"]
[BlackElo "1900"]
[Result "1-0"]
[Round "03"]
[TimeControl "180+1"]
[Date "2022.03.09"]
[WhiteClock "0:00:46"]
[BlackClock "0:00:01"]

1. e4 {[%clk 0:03:00]}  c5 {[%clk 0:02:59]} 2. Nc3 {[%clk 0:03:00]}  d6 {[%clk 0:02:57]} 3. g3 {[%clk 0:03:00]}  g6 {[%clk 0:02:56]} 4. Bg2 {[%clk 0:03:00]}  Bg7 {[%clk 0:02:57]} 5. Nge2 {[%clk 0:03:00]}  Nc6 {[%clk 0:02:56]} 6. d3 {[%clk 0:03:00]}  e6 {[%clk 0:02:55]} 7. Be3 {[%clk 0:03:00]}  Nd4 {[%clk 0:02:53]} 8. Qd2 {[%clk 0:02:59]}  Ne7 {[%clk 0:02:40]} 9. O-O {[%clk 0:02:55]}  O-O {[%clk 0:02:39]} 10. Nd1 {[%clk 0:02:54]}  Rb8 {[%clk 0:02:33]} 11. c3 {[%clk 0:02:47]}  Nxe2+ {[%clk 0:02:32]} 12. Qxe2 {[%clk 0:02:48]}  b5 {[%clk 0:02:31]} 13. d4 {[%clk 0:02:46]}  Qc7 {[%clk 0:02:04]} 14. dxc5 {[%clk 0:02:20]}  dxc5 {[%clk 0:01:56]} 15. Bf4 {[%clk 0:02:19]}  e5 {[%clk 0:01:56]} 16. Bg5 {[%clk 0:02:18]}  b4 {[%clk 0:01:33]} 17. Bxe7 {[%clk 0:02:10]}  Qxe7 {[%clk 0:01:32]} 18. Ne3 {[%clk 0:02:11]}  Be6 {[%clk 0:01:21]} 19. c4 {[%clk 0:02:09]}  Rfd8 {[%clk 0:01:04]} 20. Nd5 {[%clk 0:01:58]}  Bxd5 {[%clk 0:01:01]} 21. cxd5 {[%clk 0:01:58]}  Bf8 {[%clk 0:00:56]} 22. Rac1 {[%clk 0:01:54]}  Qc7 {[%clk 0:00:47]} 23. b3 {[%clk 0:01:26]}  a5 {[%clk 0:00:45]} 24. h4 {[%clk 0:01:18]}  a4 {[%clk 0:00:42]} 25. bxa4 {[%clk 0:01:17]}  Qa5 {[%clk 0:00:41]} 26. Qc2 {[%clk 0:01:08]}  Ra8 {[%clk 0:00:39]} 27. f4 {[%clk 0:01:05]}  exf4 {[%clk 0:00:26]} 28. gxf4 {[%clk 0:01:05]}  Qxa4 {[%clk 0:00:25]} 29. e5 {[%clk 0:00:56]}  Qxa2 {[%clk 0:00:15]} 30. d6 {[%clk 0:00:55]}  Qxc2 {[%clk 0:00:15]} 31. Rxc2 {[%clk 0:00:55]}  Rac8 {[%clk 0:00:12]} 32. Rfc1 {[%clk 0:00:46]}  f6 {[%clk 0:00:08]} 33. Rxc5 {[%clk 0:00:43]}  Rxc5 {[%clk 0:00:04]} 34. Rxc5 {[%clk 0:00:44]}  fxe5 {[%clk 0:00:04]} 35. fxe5 {[%clk 0:00:45]}  Rb8 {[%clk 0:00:02]} 36. Bd5+ {[%clk 0:00:45]}  Kg7 {[%clk 0:00:01]} 37. Bb3 {[%clk 0:00:46]} 1-0


[Site "https://www.chess.com"]

[Event "Titled Tuesday Blitz March 08 Early 2022"]
[White "Agasarov, Benik"]
[Black "Kozak, Antoni"]
[WhiteFideId "13314823"]
[BlackFideId "21832030"]
[WhiteElo "2564"]
[BlackElo "2236"]
[Result "0-1"]
[Round "04"]
[TimeControl "180+1"]
[Date "2022.03.09"]
[WhiteClock "0:00:15"]
[BlackClock "0:00:07"]

1. e4 {[%clk 0:03:00]}  c5 {[%clk 0:02:59]} 2. Nf3 {[%clk 0:02:57]}  d6 {[%clk 0:02:59]} 3. d4 {[%clk 0:02:53]}  cxd4 {[%clk 0:03:00]} 4. Nxd4 {[%clk 0:02:53]}  Nf6 {[%clk 0:03:00]} 5. Nc3 {[%clk 0:02:53]}  a6 {[%clk 0:03:01]} 6. Be3 {[%clk 0:02:50]}  e5 {[%clk 0:03:01]} 7. Nf3 {[%clk 0:02:47]}  Be7 {[%clk 0:02:59]} 8. Bc4 {[%clk 0:02:42]}  O-O {[%clk 0:02:47]} 9. O-O {[%clk 0:02:42]}  Nc6 {[%clk 0:02:45]} 10. Nd5 {[%clk 0:02:39]}  Nxd5 {[%clk 0:02:45]} 11. Bxd5 {[%clk 0:02:39]}  Be6 {[%clk 0:02:42]} 12. c3 {[%clk 0:02:36]}  Qc7 {[%clk 0:02:35]} 13. Qd2 {[%clk 0:02:30]}  Rac8 {[%clk 0:02:31]} 14. b3 {[%clk 0:02:24]}  b5 {[%clk 0:02:23]} 15. Rac1 {[%clk 0:02:19]}  Bxd5 {[%clk 0:02:05]} 16. Qxd5 {[%clk 0:02:15]}  Qa5 {[%clk 0:01:46]} 17. Rc2 {[%clk 0:01:55]}  h6 {[%clk 0:01:30]} 18. Rfc1 {[%clk 0:01:53]}  Qc7 {[%clk 0:01:27]} 19. a3 {[%clk 0:01:48]}  Qa5 {[%clk 0:01:11]} 20. b4 {[%clk 0:01:23]}  Qa4 {[%clk 0:01:02]} 21. c4 {[%clk 0:01:20]}  Qxa3 {[%clk 0:00:59]} 22. Rc3 {[%clk 0:01:14]}  Qa4 {[%clk 0:00:55]} 23. cxb5 {[%clk 0:01:08]}  Nxb4 {[%clk 0:00:55]} 24. Qb7 {[%clk 0:01:00]}  Rxc3 {[%clk 0:00:54]} 25. Rf1 {[%clk 0:00:54]}  Bf6 {[%clk 0:00:34]} 26. b6 {[%clk 0:00:51]}  Qc6 {[%clk 0:00:30]} 27. Qa7 {[%clk 0:00:49]}  Nc2 {[%clk 0:00:18]} 28. b7 {[%clk 0:00:48]}  Qc7 {[%clk 0:00:16]} 29. Bb6 {[%clk 0:00:48]}  Qb8 {[%clk 0:00:16]} 30. Qxa6 {[%clk 0:00:47]}  Rb3 {[%clk 0:00:15]} 31. Nd2 {[%clk 0:00:43]}  Rb4 {[%clk 0:00:11]} 32. Qa5 {[%clk 0:00:40]}  Bd8 {[%clk 0:00:09]} 33. Bxd8 {[%clk 0:00:36]}  Qxd8 {[%clk 0:00:07]} 34. Qa2 {[%clk 0:00:28]}  Nd4 {[%clk 0:00:06]} 35. Nc4 {[%clk 0:00:27]}  Rxb7 {[%clk 0:00:06]} 36. Ne3 {[%clk 0:00:27]}  Qb8 {[%clk 0:00:06]} 37. Qd5 {[%clk 0:00:26]}  Rb1 {[%clk 0:00:06]} 38. h4 {[%clk 0:00:22]}  Rxf1+ {[%clk 0:00:05]} 39. Nxf1 {[%clk 0:00:22]}  Qb1 {[%clk 0:00:06]} 40. Qxd6 {[%clk 0:00:21]}  Ne2+ {[%clk 0:00:05]} 41. Kh2 {[%clk 0:00:20]}  Qxf1 {[%clk 0:00:06]} 42. Qxe5 {[%clk 0:00:20]}  Qxf2 {[%clk 0:00:05]} 43. Kh3 {[%clk 0:00:18]}  Nf4+ {[%clk 0:00:05]} 44. Kg4 {[%clk 0:00:18]}  h5+ {[%clk 0:00:05]} 45. Kg5 {[%clk 0:00:17]}  f6+ {[%clk 0:00:05]} 46. Qxf6 {[%clk 0:00:15]}  gxf6+ {[%clk 0:00:06]} 47. Kh6 {[%clk 0:00:15]}  Qg3 {[%clk 0:00:06]} 48. e5 {[%clk 0:00:15]}  Qg6# {[%clk 0:00:07]} 0-1


[Site "https://www.chess.com"]

[Event "Titled Tuesday Blitz March 08 Early 2022"]
[White "Alavi, Sayed Javad"]
[Black "Begunov, Konstantin"]
[WhiteFideId "12500607"]
[BlackFideId "4118510"]
[WhiteElo "2475"]
[BlackElo "2262"]
[Result "1-0"]
[Round "04"]
[TimeControl "180+1"]
[Date "2022.03.09"]
[WhiteClock "0:00:21"]
[BlackClock "0:00:19"]

1. e4 {[%clk 0:03:00]}  c5 {[%clk 0:02:57]} 2. Nf3 {[%clk 0:03:00]}  d6 {[%clk 0:02:57]} 3. d4 {[%clk 0:02:59]}  cxd4 {[%clk 0:02:57]} 4. Qxd4 {[%clk 0:03:00]}  a6 {[%clk 0:02:56]} 5. c4 {[%clk 0:02:59]}  Nc6 {[%clk 0:02:56]} 6. Qd2 {[%clk 0:03:00]}  Bg4 {[%clk 0:02:56]} 7. Be2 {[%clk 0:02:55]}  Rc8 {[%clk 0:02:54]} 8. b3 {[%clk 0:02:46]}  Nf6 {[%clk 0:02:50]} 9. Nc3 {[%clk 0:02:45]}  g6 {[%clk 0:02:50]} 10. Bb2 {[%clk 0:02:42]}  Bg7 {[%clk 0:02:50]} 11. h3 {[%clk 0:02:39]}  Bxf3 {[%clk 0:02:49]} 12. Bxf3 {[%clk 0:02:40]}  O-O {[%clk 0:02:47]} 13. Be2 {[%clk 0:02:39]}  Qa5 {[%clk 0:02:33]} 14. Bd3 {[%clk 0:01:48]}  Rb8 {[%clk 0:02:21]} 15. O-O {[%clk 0:01:40]}  b5 {[%clk 0:02:20]} 16. Rfe1 {[%clk 0:01:33]}  bxc4 {[%clk 0:02:15]} 17. Bxc4 {[%clk 0:01:34]}  Ne5 {[%clk 0:02:12]} 18. Bf1 {[%clk 0:01:31]}  Rfc8 {[%clk 0:02:11]} 19. Qe3 {[%clk 0:01:11]}  Qc5 {[%clk 0:01:59]} 20. Qxc5 {[%clk 0:01:04]}  Rxc5 {[%clk 0:02:00]} 21. Bxa6 {[%clk 0:01:03]}  Nh5 {[%clk 0:01:24]} 22. Kf1 {[%clk 0:00:34]}  Nf4 {[%clk 0:01:20]} 23. Red1 {[%clk 0:00:34]}  Ra8 {[%clk 0:01:00]} 24. Be2 {[%clk 0:00:32]}  Rac8 {[%clk 0:00:58]} 25. Rac1 {[%clk 0:00:30]}  Kf8 {[%clk 0:00:42]} 26. g3 {[%clk 0:00:27]}  Nxe2 {[%clk 0:00:42]} 27. Nxe2 {[%clk 0:00:27]}  Rc2 {[%clk 0:00:35]} 28. Nd4 {[%clk 0:00:23]}  Rxc1 {[%clk 0:00:27]} 29. Rxc1 {[%clk 0:00:23]}  Rxc1+ {[%clk 0:00:26]} 30. Bxc1 {[%clk 0:00:22]}  Nd3 {[%clk 0:00:27]} 31. Be3 {[%clk 0:00:22]}  Bxd4 {[%clk 0:00:15]} 32. Bxd4 {[%clk 0:00:23]}  Nc1 {[%clk 0:00:16]} 33. Be3 {[%clk 0:00:18]}  Nxa2 {[%clk 0:00:15]} 34. Bd2 {[%clk 0:00:18]}  e6 {[%clk 0:00:12]} 35. Ke2 {[%clk 0:00:18]}  Ke7 {[%clk 0:00:12]} 36. Kd3 {[%clk 0:00:18]}  d5 {[%clk 0:00:12]} 37. exd5 {[%clk 0:00:18]}  exd5 {[%clk 0:00:13]} 38. Kc2 {[%clk 0:00:18]}  d4 {[%clk 0:00:13]} 39. Kb2 {[%clk 0:00:18]}  Nc3 {[%clk 0:00:13]} 40. Bxc3 {[%clk 0:00:19]}  dxc3+ {[%clk 0:00:14]} 41. Kxc3 {[%clk 0:00:19]}  Kd6 {[%clk 0:00:15]} 42. Kc4 {[%clk 0:00:20]}  Kc6 {[%clk 0:00:15]} 43. b4 {[%clk 0:00:20]}  h5 {[%clk 0:00:16]} 44. b5+ {[%clk 0:00:20]}  Kb6 {[%clk 0:00:16]} 45. h4 {[%clk 0:00:20]}  f6 {[%clk 0:00:16]} 46. f3 {[%clk 0:00:20]}  g5 {[%clk 0:00:17]} 47. f4 {[%clk 0:00:20]}  gxh4 {[%clk 0:00:16]} 48. gxh4 {[%clk 0:00:19]}  f5 {[%clk 0:00:17]} 49. Kb4 {[%clk 0:00:19]}  Kb7 {[%clk 0:00:17]} 50. Kc5 {[%clk 0:00:20]}  Kc7 {[%clk 0:00:18]} 51. Kd5 {[%clk 0:00:20]}  Kb7 {[%clk 0:00:19]} 52. Ke5 {[%clk 0:00:21]} 1-0


[Site "https://www.chess.com"]

[Event "Titled Tuesday Blitz March 08 Early 2022"]
[White "Albertini, Luca"]
[Black "Estrada Nieto, Julian"]
[WhiteFideId "847038"]
[BlackFideId "5101018"]
[WhiteElo "2207"]
[BlackElo "2246"]
[Result "0-1"]
[Round "04"]
[TimeControl "180+1"]
[Date "2022.03.09"]
[WhiteClock "0:00:06"]
[BlackClock "0:00:45"]

1. d4 {[%clk 0:03:00]}  d5 {[%clk 0:02:59]} 2. Nf3 {[%clk 0:02:56]}  Nf6 {[%clk 0:02:59]} 3. g3 {[%clk 0:02:55]}  c6 {[%clk 0:02:57]} 4. Bg2 {[%clk 0:02:54]}  Bf5 {[%clk 0:02:57]} 5. O-O {[%clk 0:02:53]}  Nbd7 {[%clk 0:02:58]} 6. b3 {[%clk 0:02:52]}  e6 {[%clk 0:02:58]} 7. c4 {[%clk 0:02:50]}  Bd6 {[%clk 0:02:56]} 8. Bb2 {[%clk 0:02:50]}  h6 {[%clk 0:02:55]} 9. Nc3 {[%clk 0:02:49]}  O-O {[%clk 0:02:54]} 10. Re1 {[%clk 0:02:48]}  Bb4 {[%clk 0:02:46]} 11. a3 {[%clk 0:02:45]}  Bxc3 {[%clk 0:02:46]} 12. Bxc3 {[%clk 0:02:45]}  Be4 {[%clk 0:02:44]} 13. Nd2 {[%clk 0:02:35]}  Bxg2 {[%clk 0:02:43]} 14. Kxg2 {[%clk 0:02:36]}  b5 {[%clk 0:02:37]} 15. Bb4 {[%clk 0:02:16]}  Re8 {[%clk 0:02:36]} 16. Bd6 {[%clk 0:02:11]}  bxc4 {[%clk 0:02:26]} 17. bxc4 {[%clk 0:01:58]}  Nb6 {[%clk 0:02:25]} 18. c5 {[%clk 0:01:38]}  Nc8 {[%clk 0:02:24]} 19. Be5 {[%clk 0:01:36]}  Nd7 {[%clk 0:02:22]} 20. e4 {[%clk 0:01:35]}  Nxe5 {[%clk 0:02:17]} 21. dxe5 {[%clk 0:01:35]}  Ne7 {[%clk 0:02:13]} 22. Qa4 {[%clk 0:01:33]}  Qc7 {[%clk 0:02:09]} 23. Nf3 {[%clk 0:01:13]}  Ng6 {[%clk 0:02:03]} 24. exd5 {[%clk 0:01:11]}  exd5 {[%clk 0:01:59]} 25. Nd4 {[%clk 0:00:55]}  Nxe5 {[%clk 0:01:53]} 26. f4 {[%clk 0:00:52]}  Nd7 {[%clk 0:01:46]} 27. Qxc6 {[%clk 0:00:39]}  Qxc6 {[%clk 0:01:43]} 28. Nxc6 {[%clk 0:00:40]}  Nxc5 {[%clk 0:01:42]} 29. Rxe8+ {[%clk 0:00:25]}  Rxe8 {[%clk 0:01:40]} 30. Nxa7 {[%clk 0:00:25]}  d4 {[%clk 0:01:29]} 31. Nc6 {[%clk 0:00:18]}  d3 {[%clk 0:01:26]} 32. Ne5 {[%clk 0:00:18]}  f6 {[%clk 0:01:24]} 33. Nc4 {[%clk 0:00:15]}  Re2+ {[%clk 0:01:23]} 34. Kf3 {[%clk 0:00:09]}  Rc2 {[%clk 0:01:16]} 35. Ne3 {[%clk 0:00:08]}  Rc3 {[%clk 0:00:55]} 36. a4 {[%clk 0:00:08]}  d2 {[%clk 0:00:52]} 37. Ke2 {[%clk 0:00:08]}  Nb3 {[%clk 0:00:49]} 38. Ra3 {[%clk 0:00:08]}  Nd4+ {[%clk 0:00:45]} 39. Kd1 {[%clk 0:00:07]}  Rxa3 {[%clk 0:00:46]} 40. Kxd2 {[%clk 0:00:06]}  Rxa4 {[%clk 0:00:45]} 0-1


[Site "https://www.chess.com"]